bitfinex/quotes_ETHUSD_20250110
["timestamp","ask_amount","ask_price","bid_price","bid_amount"]
[1736529516277,3.06298,3264.8,3263.9,3.09441629]
[1736529516431,0.55,3264.9,3263.8,1.87961785]
[1736529516862,0.55,3264.5,3263.3,3.452598]
[1736529517029,3.61352,3264.3,3263.4,0.7954]
[1736529517254,3.61352,3264.3,3263.6,0.6163606]
[1736529518171,3.06382,3263.9,3263.4,0.7954]
[1736529518370,3.06391,3263.8,3262.9,3.88523]
[1736529518571,0.55,3264.1,3262.9,1.209023]
[1736529518834,0.55,3263.9,3263.1,3.06456]
[1736529519024,0.55,3263.9,3262.6,0.2685]
[1736529519025,3.47104128,3264.2,3263.2,0.63178744]
[1736529519185,3.47104128,3264.6,3263.4,0.0075]
[1736529519387,3.06327,3264.5,3263.4,0.0075]
[1736529519626,3.47104128,3264.6,3263.4,0.0075]
[1736529519919,0.55,3264.5,3263.6,3.06404]
[1736529520215,0.55,3264.1,3263.3,0.8205]
[1736529520423,3.06373,3264.0,3263.3,0.8205]
[1736529520827,0.55,3264.1,3263.4,0.59862934]
[1736529521122,0.55,3264.1,3263.3,0.8205]
[1736529521368,0.55,3263.9,3263.3,0.8205]
[1736529521718,3.61364,3264.1,3263.3,0.8205]
[1736529521898,3.47104128,3264.2,3263.4,0.03064028]
[1736529522073,3.06336,3264.4,3263.5,3.06419]
[1736529522412,3.47104128,3263.8,3263.1,1.42906408]
[1736529522577,3.06405,3263.7,3263.1,1.42906408]
[1736529522777,3.06366,3264.1,3263.1,4.49354408]
[1736529522983,4.22334128,3264.6,3263.3,3.06438]
[1736529523291,0.55,3264.4,3263.4,3.06426]
[1736529523525,0.55,3264.5,3263.4,3.06426]
[1736529523862,3.06336,3264.4,3263.4,3.06426]
[1736529523975,0.55,3264.3,3263.5,0.306426]
[1736529525192,0.55,3264.5,3263.6,0.7873]
[1736529525373,3.06302,3264.8,3263.8,3.06381]
[1736529525824,19.62575128,3265.0,3264.0,0.7612]
[1736529526006,19.62575128,3265.0,3264.1,0.03063144]
[1736529526333,19.62575128,3265.0,3264.0,0.7612]
[1736529526697,19.62575128,3265.0,3264.2,3.06351]
[1736529526874,19.62575128,3265.0,3264.3,0.306351]
[1736529527078,19.62575128,3265.0,3264.1,3.06361]
[1736529527272,0.55,3264.9,3264.0,0.7612]
[1736529527580,3.6129,3264.9,3264.0,3.82489]
[1736529527782,0.55,3264.9,3264.1,3.06361]
[1736529528714,0.55,3264.9,3264.2,0.60530771]
[1736529528943,2.87385613,3264.9,3264.2,0.60530771]
[1736529529516,2.87385613,3264.9,3264.1,3.06361]
[1736529529864,0.55,3264.7,3264.0,0.7537]
[1736529530025,16.15471,3265.0,3264.3,3.06337]
[1736529530575,16.15471,3265.0,3264.5,3.06318]
[1736529530780,16.15471,3265.0,3264.6,0.7873]
[1736529531583,3.61288,3264.9,3264.0,3.06367]
[1736529531767,4.25844128,3264.6,3263.6,0.7846]
[1736529532077,3.47104128,3264.2,3263.6,0.7846]
[1736529532443,3.61367,3264.1,3263.1,0.7715]
[1736529532681,0.55,3264.1,3263.1,0.7715]
[1736529532981,0.55,3263.8,3263.1,0.7715]
[1736529533161,4.38318028,3263.8,3263.1,0.7715]
[1736529533332,3.61412,3263.6,3262.3,0.8184]
[1736529533624,0.55,3263.6,3262.8,3.06483]
[1736529533823,0.55,3263.6,3262.4,3.07267]
[1736529533824,0.55,3263.6,3262.9,3.06474]
[1736529534263,0.55,3263.6,3262.8,0.62812867]
[1736529534570,0.55,3263.0,3262.6,0.8184]
[1736529534752,0.55,3263.0,3262.3,4.50894538]
[1736529535080,6.0644,3263.3,3262.3,1.44364538]
[1736529535081,1.3406,3263.2,3262.3,1.44364538]
[1736529535279,0.55,3263.0,3262.3,1.44364538]
[1736529535681,0.55,3262.9,3262.3,0.8184]
[1736529536355,0.8138,3263.5,3262.4,0.0075]
[1736529536587,4.247429,3263.8,3262.8,3.06481]
[1736529536776,3.0,3263.7,3262.8,0.306481]
[1736529536980,0.8138,3263.8,3262.9,3.06467]
[1736529537522,3.06406,3263.7,3262.8,0.0075]
[1736529537685,3.61411,3263.6,3262.6,3.84571]
[1736529537889,4.02104128,3263.6,3262.6,3.84571]
[1736529538616,4.02104128,3263.6,3262.8,3.06482]
[1736529538799,0.8138,3263.8,3262.9,0.306482]
[1736529539007,0.55,3263.7,3262.9,3.06467]
[1736529539178,0.55,3263.7,3262.7,0.62260774]
[1736529539377,0.55,3263.7,3262.8,3.06477]
[1736529539578,0.55,3263.7,3262.9,3.06475]
[1736529540437,0.55,3263.7,3262.7,3.68751774]
[1736529540643,0.55,3263.5,3262.8,0.44682177]
[1736529540803,0.5725,3263.4,3262.6,0.7807]
[1736529540989,0.5725,3263.4,3261.4,3.06615]
[1736529540990,0.55,3262.9,3261.9,0.8268]
[1736529541195,0.55,3262.9,3262.3,3.0653]
[1736529541385,3.47104128,3263.2,3262.3,3.0653]
[1736529541386,3.61458,3263.1,3262.3,0.62813275]
[1736529541740,0.8016,3263.4,3262.2,0.61242769]
[1736529541945,0.8016,3263.4,3262.6,3.065]
[1736529542148,0.55,3263.3,3262.6,3.065]
[1736529542349,0.8311,3263.7,3262.7,0.03064807]
[1736529542492,3.47104128,3264.0,3263.1,0.8045]
[1736529542927,3.47104128,3264.0,3263.3,3.06435]
[1736529543235,3.47104128,3264.0,3263.3,0.386885]
[1736529543837,0.55,3263.9,3263.3,0.386885]
[1736529543995,0.55,3263.9,3263.1,0.8045]
[1736529544900,0.55,3263.9,3263.1,4.49525125]
[1736529548845,0.8311,3264.5,3263.2,0.0075]
[1736529549047,4.30214128,3264.8,3263.9,0.8045]
[1736529549211,0.8311,3264.8,3264.2,3.06352]
[1736529549411,16.15471,3265.0,3264.4,3.06333]
[1736529550043,16.15471,3265.0,3264.2,0.33698403]
[1736529550254,16.15471,3265.0,3264.5,3.06325]
[1736529550600,16.15471,3265.0,3264.4,0.60506748]
[1736529551545,16.15471,3265.0,3264.4,3.66839748]
[1736529551701,16.15471,3265.0,3264.5,0.36683975]
[1736529552048,16.15471,3265.0,3264.5,3.43005975]
[1736529552553,16.15471,3265.0,3264.5,0.36683975]
[1736529552759,16.15471,3265.0,3264.5,3.06325]
[1736529552914,16.15471,3265.0,3264.4,0.63569784]
[1736529553118,16.15471,3265.0,3264.6,3.06315]
[1736529553515,16.15471,3265.0,3264.4,3.66833748]
[1736529554806,16.15471,3265.0,3264.5,3.06321]
[1736529555007,16.15471,3265.0,3264.5,3.43003775]
[1736529556149,16.15471,3265.0,3264.7,3.06305]
[1736529556654,16.15471,3265.0,3264.6,0.8077]
[1736529556954,16.15471,3265.0,3264.2,0.7896]
[1736529557458,16.15471,3265.0,3264.3,3.66497125]
[1736529558333,16.15471,3265.0,3264.3,0.60155125]
[1736529558532,0.7828,3264.9,3264.3,0.60155125]
[1736529559259,0.7828,3264.9,3263.9,3.06379]
[1736529559260,7.08406128,3264.8,3263.9,3.06379]
[1736529559459,2.85979895,3264.5,3263.9,3.06379]
[1736529559656,2.85979895,3264.5,3263.7,3.06397]
[1736529559806,2.85979895,3264.5,3264.0,0.60517025]
[1736529560235,0.55,3264.4,3263.6,3.06405]
[1736529560423,0.55,3264.4,3263.6,3.452165]
[1736529560617,2.85979895,3264.2,3263.4,3.06426]
[1736529560847,2.85979895,3264.2,3263.5,3.06417]
[1736529561050,0.55,3264.2,3263.6,0.61608859]
[1736529561420,0.7719,3264.3,3263.7,0.03063959]
[1736529561622,0.8122,3264.7,3264.2,3.06345]
[1736529561829,0.8122,3264.7,3263.9,0.7629]
[1736529562022,0.8122,3264.7,3264.1,3.06357]
[1736529562225,0.8122,3264.7,3263.9,3.82668]
[1736529562549,0.8122,3264.7,3263.6,1.39998859]
[1736529562550,0.55,3264.4,3263.6,1.39998859]
[1736529562954,0.55,3264.4,3263.6,0.61608859]
[1736529563106,0.55,3264.1,3263.6,0.61608859]
[1736529563428,3.06396,3263.8,3262.7,0.7839]
[1736529563630,2.85979895,3263.8,3263.0,3.06465]
[1736529563830,2.85979895,3263.8,3263.1,0.61057319]
[1736529563831,0.55,3263.7,3263.1,0.61057319]
[1736529564324,0.55,3263.7,3262.8,3.0]
[1736529564532,0.55,3263.7,3263.0,3.06465]
[1736529564852,3.81586,3264.0,3263.1,3.06454]
[1736529565051,0.55,3263.9,3263.1,3.06454]
[1736529565259,0.7521,3264.0,3263.2,3.06446]
[1736529565608,0.7521,3264.0,3263.3,3.06436]
[1736529565805,0.7521,3264.0,3263.4,3.43187763]
[1736529566454,0.7521,3264.0,3263.4,0.36759763]
[1736529566638,0.7521,3264.0,3263.2,3.67603628]
[1736529566843,0.7521,3264.0,3263.3,3.06437]
[1736529567468,0.7584,3264.3,3263.8,3.06387]
[1736529567855,0.7584,3264.3,3263.6,0.0075]
[1736529568217,5.85979895,3264.9,3264.0,3.06363]
[1736529568412,5.85979895,3264.9,3264.2,3.06351]
[1736529568661,2.85979895,3264.9,3264.1,0.33699632]
[1736529568977,16.15471,3265.0,3264.2,0.7866]
[1736529569280,16.15471,3265.0,3264.5,3.06318]
[1736529569972,16.15471,3265.0,3264.3,3.06337]
[1736529570274,19.01450895,3265.0,3264.3,3.06342]
[1736529570475,16.15471,3265.0,3264.6,3.06314]
[1736529570611,16.15471,3265.0,3264.5,0.60366012]
[1736529571220,16.15471,3265.0,3264.5,4.03353513]
[1736529571926,16.15471,3265.0,3264.6,3.06312]
[1736529572944,16.15471,3265.0,3264.5,0.97036513]
[1736529573150,16.15471,3265.0,3264.5,0.60366012]
[1736529573815,16.15471,3265.0,3264.9,3.06288]
[1736529574015,8.29393879,3265.0,3264.9,6.82108]
[1736529574223,0.165932,3266.7,3265.8,3.06199]
[1736529574467,2.85979895,3266.6,3265.4,3.06232]
[1736529574675,0.8003,3266.3,3265.2,0.0075]
[1736529574879,0.8003,3266.3,3265.4,0.0075]
[1736529575081,0.8003,3266.3,3265.8,3.06201]
[1736529575369,0.8003,3266.3,3265.6,3.06219]
[1736529575676,0.8003,3266.3,3265.7,3.06205]
[1736529576222,0.8003,3266.3,3265.7,3.68118011]
[1736529576727,0.8003,3266.3,3265.7,0.61913011]
[1736529576984,0.165932,3266.7,3265.8,0.03811855]
[1736529577128,0.165932,3266.7,3266.3,0.753]
[1736529577324,0.165932,3266.7,3266.5,3.06136]
[1736529578184,0.165932,3266.7,3266.6,3.06128]
[1736529578389,0.015932,3266.7,3266.6,3.06128]
[1736529578932,0.7501,3269.7,3267.5,0.7682]
[1736529579233,0.1669586,3269.2,3268.0,3.0]
[1736529579588,0.82877187,3269.3,3267.8,0.7682]
[1736529579589,0.82877187,3269.3,3268.5,0.0075]
[1736529579888,3.05847,3269.6,3268.5,0.0075]
[1736529580182,4.21121915,3269.7,3268.5,0.0075]
[1736529580183,4.21121915,3269.7,3268.5,3.05943]
[1736529580331,4.21121915,3269.7,3268.5,3.05945]
[1736529580684,3.46111915,3269.3,3268.4,3.05954]
[1736529580846,3.46111915,3269.3,3268.4,0.60594538]
[1736529580847,0.34611192,3269.2,3268.4,0.60594538]
[1736529581047,0.34611192,3269.2,3268.4,3.66553538]
[1736529581562,0.34611192,3269.2,3268.4,0.60594538]
[1736529582786,0.565,3269.6,3268.4,3.66551538]
[1736529582985,0.55,3269.4,3268.5,3.0595]
[1736529583137,7.21121915,3269.7,3268.5,3.0595]
[1736529583138,4.21121915,3269.7,3268.8,3.05922]
[1736529583345,0.165932,3269.9,3268.9,3.03809184]
[1736529583646,0.165932,3269.9,3269.1,3.06635]
[1736529583844,0.165932,3269.9,3269.3,0.0075]
[1736529584048,0.165932,3269.9,3269.5,3.05856]
[1736529584238,0.165932,3269.9,3269.5,3.65950356]
[1736529584440,0.165932,3269.9,3269.3,1.0709]
[1736529584743,0.165932,3269.9,3269.3,4.12965]
[1736529585088,0.165932,3269.9,3269.4,0.62361374]
[1736529585989,0.165932,3269.9,3269.4,3.68227374]
[1736529586193,0.165932,3269.9,3269.4,0.62361374]
[1736529586356,0.7556,3269.8,3268.9,3.05907]
[1736529586895,0.7556,3269.8,3268.7,3.31931]
[1736529587042,0.3979812,3269.7,3268.9,0.61836866]
[1736529587954,3.4563712,3269.7,3268.6,3.05939]
[1736529588149,0.55,3269.4,3268.3,3.05969]
[1736529588350,0.55,3269.4,3268.3,0.60406837]
[1736529588351,3.46111915,3269.2,3268.3,0.60406837]
[1736529588565,0.55,3269.1,3268.3,0.60406837]
[1736529588766,3.46019192,3269.0,3267.8,3.06015]
[1736529589294,0.40111192,3269.0,3268.0,0.62048893]
[1736529589604,0.40111192,3269.0,3268.4,3.05959]
[1736529589605,0.811,3269.0,3268.4,3.05959]
[1736529589761,0.811,3269.0,3268.0,0.62048893]
[1736529589961,6.05856,3269.6,3268.5,3.05949]
[1736529590697,3.05829,3269.8,3268.4,0.0075]
[1736529591111,0.995732,3269.9,3268.4,0.03058951]
[1736529591251,0.4053862,3269.8,3268.9,3.05912]
[1736529591700,0.4053862,3269.8,3268.9,0.60098928]
[1736529592051,3.46111915,3269.7,3269.0,0.8108]
[1736529592307,0.4053862,3269.8,3269.0,0.8108]
[1736529592593,0.979132,3269.9,3269.2,3.05883]
[1736529592906,0.165932,3269.9,3269.8,3.05829]
[1736529593205,0.165932,3269.9,3269.5,3.05848]
[1736529593366,0.165932,3269.9,3269.4,0.7762]
[1736529593703,0.165932,3269.9,3269.7,3.0583]
[1736529594228,0.165932,3269.9,3269.8,4.10697077]
[1736529594499,0.165932,3269.9,3269.8,4.07639]
[1736529595103,0.165932,3269.9,3269.8,4.10696759]
[1736529595266,0.165932,3269.9,3269.8,4.73689671]
[1736529595468,0.165932,3269.9,3269.8,4.70631912]
[1736529595798,0.165932,3269.9,3269.8,4.73689566]
[1736529595962,0.165932,3269.9,3269.8,4.73689313]
[1736529596145,0.165932,3269.9,3269.8,4.70631912]
[1736529596350,0.165932,3269.9,3269.8,4.69881912]
[1736529596653,0.165932,3269.9,3269.8,0.62242912]
[1736529597205,0.165932,3269.9,3269.2,0.26]
[1736529597681,0.165932,3269.9,3268.9,4.07511]
[1736529597864,0.3224052,3269.8,3269.2,0.61254607]
[1736529598063,0.7801,3269.8,3269.2,0.61254607]
[1736529598269,0.7801,3269.8,3268.9,3.31912]
[1736529598721,0.7801,3269.8,3268.9,3.05912]
[1736529598878,0.7801,3269.8,3269.1,0.60317693]
[1736529599083,0.7801,3269.8,3269.2,3.05884]
[1736529600216,0.165932,3269.9,3269.1,0.60317693]
[1736529600385,0.3224062,3269.8,3269.1,0.60317693]
[1736529600718,3.46111915,3269.8,3269.1,0.60317693]
[1736529601024,0.165932,3269.9,3269.1,3.66211693]
[1736529601322,0.165932,3269.9,3269.8,3.05829]
[1736529605090,0.165932,3269.9,3269.8,3.67036492]
[1736529605808,0.165932,3269.9,3269.8,3.67786492]
[1736529606324,0.165932,3269.9,3269.8,6.70843999]
[1736529606510,0.165932,3269.9,3269.8,6.67786492]
[1736529606910,0.165932,3269.9,3269.8,10.08650492]
[1736529607104,0.165932,3269.9,3269.8,7.46406492]
[1736529609843,2e-06,3269.9,3269.8,7.47156492]
[1736529609992,2e-06,3269.9,3269.8,12.47156492]
[1736529610188,2e-06,3269.9,3269.8,12.48656492]
[1736529610748,0.625,3270.7,3270.6,3.06504]
[1736529610887,3.46111915,3272.2,3270.7,0.0075]
[1736529611091,0.42742192,3272.1,3271.3,3.05681]
[1736529611291,0.42742192,3272.1,3270.9,3.05721]
[1736529611292,0.7857,3272.8,3272.0,3.05622]
[1736529611610,0.7857,3272.8,3272.1,3.08666142]
[1736529612003,0.165932,3273.2,3272.1,0.7838]
[1736529612163,0.165932,3273.2,3272.5,3.05567]
[1736529612370,0.7949,3273.1,3272.1,0.7763]
[1736529612530,3.46111915,3272.9,3272.0,3.65706835]
[1736529612865,0.34611192,3272.8,3272.2,3.05601]
[1736529613070,0.165932,3273.2,3272.4,3.05582]
[1736529613360,0.7949,3273.1,3272.2,3.05601]
[1736529613570,4.25601915,3273.1,3272.2,3.05601]
[1736529613867,0.165932,3273.2,3272.3,3.05587]
[1736529614018,0.7949,3273.1,3272.0,0.60086835]
[1736529614218,0.005,3272.4,3272.3,3.05592]
[1736529614419,0.120932,3273.2,3272.6,3.05567]
[1736529614668,0.120932,3273.2,3272.0,4.43332835]
[1736529614669,0.7949,3273.1,3272.0,4.43332835]
[1736529614816,0.120932,3273.2,3272.1,3.05614]
[1736529615022,0.8026,3273.1,3272.1,0.0075]
[1736529615224,0.4385172,3273.2,3272.7,3.0555]
[1736529615533,0.120932,3273.2,3273.0,3.05529]
[1736529615760,0.120932,3273.2,3273.1,3.0552]
[1736529615928,0.120932,3273.2,3272.9,3.05536]
[1736529616125,0.120932,3273.2,3272.9,0.8212]
[1736529616327,3.85651,3274.5,3273.4,3.05492]
[1736529616525,0.385651,3274.4,3273.5,3.05478]
[1736529616729,0.8026,3274.5,3273.8,3.05455]
[1736529617086,0.8026,3274.5,3273.6,3.05472]
[1736529617242,0.8026,3274.5,3273.4,0.2905448]
[1736529617243,3.05411,3274.3,3273.4,0.60736477]
[1736529617443,0.8026,3274.5,3273.4,0.60736477]
[1736529617624,0.8026,3274.5,3273.1,0.26]
[1736529617625,3.8026,3274.5,3273.1,0.26]
[1736529617820,0.7734,3274.3,3273.2,3.05509]
[1736529618068,3.82749,3274.3,3273.2,3.05509]
[1736529618473,3.46111915,3274.2,3273.1,0.26]
[1736529618690,3.05437,3274.0,3273.0,3.05527]
[1736529618975,0.7956,3273.7,3272.5,3.05574]
[1736529619195,3.48042192,3273.6,3272.5,3.05574]
[1736529619543,3.05484,3273.5,3272.2,3.05604]
[1736529619710,0.42567192,3273.6,3272.6,0.61758039]
[1736529620009,0.42567192,3273.6,3272.1,0.26]
[1736529620010,3.05522,3273.1,3272.1,0.26]
[1736529620150,0.8229,3273.3,3271.9,3.05623]
[1736529620350,0.8229,3273.1,3272.2,0.59879909]
[1736529620609,3.05558,3272.7,3272.2,0.59879909]
[1736529620806,0.8091,3272.8,3271.8,3.05641]
[1736529620969,0.8091,3272.8,3272.1,0.62504396]
[1736529621299,0.8091,3272.8,3271.6,3.05657]
[1736529621300,3.05571,3272.6,3271.6,3.05657]
[1736529621508,0.305571,3272.5,3271.6,3.05657]
[1736529621706,0.305571,3272.5,3271.7,3.0565]
[1736529621853,3.86461,3272.8,3271.9,0.62479926]
[1736529622214,3.05568,3272.6,3271.9,0.62479926]
[1736529622703,3.05586,3272.4,3271.0,0.26]
[1736529622854,0.8204,3272.6,3271.0,0.26]
[1736529622855,0.8204,3272.6,3271.6,0.60699679]
[1736529623054,3.05576,3272.5,3271.6,0.60699679]
[1736529623323,0.387616,3272.4,3271.6,3.66357679]
[1736529623504,0.8204,3272.6,3271.7,0.03056325]
[1736529623700,0.8204,3272.6,3271.9,3.05632]
[1736529623865,0.8204,3272.6,3271.7,0.03056325]
[1736529624075,0.8204,3272.6,3271.7,0.03056045]
[1736529624256,0.8204,3272.6,3272.1,3.05611]
[1736529624673,0.8204,3272.6,3271.9,3.05631]
[1736529625084,0.8204,3272.6,3272.0,3.05622]
[1736529625287,0.8204,3272.6,3272.1,3.05611]
[1736529625471,0.8307,3272.9,3272.5,3.05576]
[1736529625680,0.8307,3272.9,3272.5,0.62583926]
[1736529626208,0.8307,3272.9,3272.2,3.05601]
[1736529626508,0.8307,3272.9,3272.0,3.3162]
[1736529626875,0.8307,3272.9,3271.7,3.05645]
[1736529626876,0.388608,3272.8,3271.7,3.05645]
[1736529627059,0.8307,3272.9,3271.7,3.05645]
[1736529627262,3.0,3273.1,3272.0,0.60888323]
[1736529627560,0.7712,3272.3,3271.4,3.05677]
[1736529628001,3.82716,3272.3,3271.6,0.6041096]
[1736529628385,3.05614,3272.1,3271.6,0.6041096]
[1736529628715,0.7525,3271.9,3270.9,0.26]
[1736529629010,3.05649,3271.8,3270.9,0.26]
[1736529629213,3.05678,3271.5,3271.0,0.60098837]
[1736529629394,3.05666,3271.6,3270.6,0.26]
[1736529629718,0.758,3271.5,3270.3,0.26]
[1736529629858,0.55,3272.0,3270.1,1.224378]
[1736529629859,3.0571,3271.1,3270.1,1.224378]
[1736529630061,0.758,3270.9,3269.8,0.8166]
[1736529630315,0.758,3270.6,3269.3,2.041386]
[1736529630612,0.758,3270.6,3269.7,3.05836]
[1736529630819,0.758,3271.2,3270.2,3.05783]
[1736529631046,0.758,3271.2,3269.9,0.0075]
[1736529631347,3.05758,3270.6,3268.7,3.05927]
[1736529631500,0.7771,3270.4,3269.5,3.05848]
[1736529631847,0.7771,3270.4,3269.1,0.26]
[1736529631848,0.7771,3270.4,3269.7,0.61610488]
[1736529631990,3.83491,3270.4,3269.7,0.61610488]
[1736529632398,3.83491,3270.4,3269.2,0.03058217]
[1736529632399,3.05787,3270.3,3269.2,3.05884]
[1736529632600,0.7771,3270.4,3269.2,3.05884]
[1736529632601,3.0582,3269.9,3269.2,0.62051132]
[1736529632822,0.7771,3269.8,3268.8,3.0592]
[1736529633144,0.7771,3269.8,3268.6,1.492551]
[1736529633145,0.7771,3269.8,3269.1,0.60545601]
[1736529633288,0.7573,3270.3,3269.4,3.05861]
[1736529633485,0.7573,3270.3,3269.5,0.03058162]
[1736529633687,0.7573,3270.3,3269.3,3.05869]
[1736529633942,0.7573,3270.3,3269.4,0.03058106]
[1736529634141,0.7573,3270.3,3269.2,3.05885]
[1736529634442,0.7573,3270.3,3269.8,3.05821]
[1736529634603,0.7573,3270.3,3269.6,3.05844]
[1736529635005,0.7573,3270.3,3269.5,0.62465353]
[1736529635204,0.7573,3270.3,3268.9,3.08962462]
[1736529635407,0.26,3271.0,3268.9,3.08962462]
[1736529635408,3.05708,3271.1,3270.2,3.05791]
[1736529635738,0.8074,3270.7,3269.9,3.05814]
[1736529636136,0.8074,3270.7,3269.7,3.05835]
[1736529636639,3.86487,3270.7,3269.7,3.05835]
[1736529637230,0.8074,3270.7,3269.6,3.05847]
[1736529637536,0.8074,3270.7,3269.8,3.05821]
[1736529637835,1.193869,3270.7,3269.8,3.05821]
[1736529638200,1.193869,3270.7,3269.5,0.59868245]
[1736529638425,0.8074,3270.7,3269.9,3.05818]
[1736529638941,3.05772,3270.5,3269.5,3.65722245]
[1736529639106,0.8127,3270.4,3269.5,0.59868245]
[1736529639517,3.87043,3270.4,3269.5,0.59868245]
[1736529639740,0.8127,3270.4,3269.5,0.59868245]
[1736529640131,0.8127,3270.4,3269.6,3.09650348]
[1736529640438,0.8127,3270.4,3270.1,3.05798]
[1736529640809,0.8127,3270.4,3269.5,3.65722245]
[1736529641012,0.55,3270.3,3269.5,0.59868245]
[1736529641506,0.55,3270.3,3269.5,3.65724245]
[1736529641709,0.442037,3270.3,3269.5,3.65724245]
[1736529641898,0.8127,3270.4,3269.8,3.05826]
[1736529642095,0.8127,3270.4,3269.6,0.03058262]
[1736529642302,0.8127,3270.4,3269.9,3.05816]
[1736529642845,0.8127,3270.4,3269.6,0.03058262]
[1736529643049,0.8127,3270.4,3269.9,3.05816]
[1736529643509,0.8127,3270.4,3270.0,0.61871137]
[1736529644798,0.8127,3270.4,3270.2,3.05788]
[1736529645044,0.8127,3270.4,3270.0,3.67677137]
[1736529645242,0.8127,3270.4,3270.1,3.05799]
[1736529645548,0.7891,3270.8,3270.2,3.0579]
[1736529645747,0.7891,3270.8,3270.0,3.67677137]
[1736529645748,1.28364396,3270.8,3270.0,3.67677137]
[1736529646057,1.28364396,3270.8,3270.1,3.058]
[1736529646453,1.28364396,3270.8,3270.0,0.61871137]
[1736529646605,3.05748,3270.7,3270.0,0.61871137]
[1736529646946,0.7891,3270.0,3268.7,3.82742]
[1736529647094,3.45231145,3269.7,3268.9,3.05911]
[1736529647299,3.45231145,3269.7,3268.5,3.05949]
[1736529647300,3.45231145,3269.7,3269.2,0.61185245]
[1736529647552,3.45231145,3269.7,3269.2,3.67067245]
[1736529647697,0.7891,3270.0,3269.2,0.61185245]
[1736529647893,0.7891,3270.0,3269.2,3.67066245]
[1736529648135,1.51904414,3270.0,3269.2,3.67066245]
[1736529648649,3.45231145,3269.8,3269.2,0.61185245]
[1736529648851,0.8213,3269.7,3268.5,1.0874]
[1736529649050,0.8213,3269.7,3268.9,0.59785155]
[1736529649202,3.87975,3269.7,3268.9,0.59785155]
[1736529649401,3.79169614,3269.6,3268.9,0.59785155]
[1736529649696,3.87406,3269.3,3268.4,3.05954]
[1736529649973,3.87406,3269.3,3268.2,0.26]
[1736529650225,3.45231145,3269.4,3268.4,0.62609313]
[1736529650226,0.7896,3268.9,3268.4,0.62609313]
[1736529650373,0.7896,3268.9,3267.7,1.22542]
[1736529650573,0.7896,3268.9,3267.4,0.8327]
[1736529650574,0.42419115,3268.8,3267.5,3.0604]
[1736529650808,3.48348115,3268.8,3268.1,0.61580119]
[1736529651010,0.42419115,3268.8,3268.1,0.61580119]
[1736529651317,0.7587,3268.5,3268.0,0.61929309]
[1736529654468,0.7587,3268.5,3267.0,0.8153]
[1736529654717,0.42110115,3268.4,3267.0,0.8153]
[1736529654900,3.48071115,3268.4,3267.4,3.06053]
[1736529655505,0.42110115,3268.4,3267.5,3.06043]
[1736529655826,0.42110115,3268.4,3267.6,0.60703922]
[1736529656690,0.7587,3268.5,3267.7,0.0306035]
[1736529656893,0.7587,3268.5,3267.6,0.60703922]
[1736529657107,0.7587,3268.5,3266.9,3.0]
[1736529657108,3.45231145,3268.2,3266.7,3.70591195]
[1736529657344,3.45231145,3268.2,3267.0,0.26]
[1736529657623,3.45231145,3268.2,3267.3,3.06057]
[1736529657932,3.45231145,3268.2,3267.2,3.06069]
[1736529658110,0.7975,3268.3,3267.9,3.06005]
[1736529658427,0.7975,3268.3,3267.8,3.06014]
[1736529658605,0.7975,3268.3,3267.6,0.0075]
[1736529658924,3.05811,3270.0,3267.6,0.0075]
[1736529658925,0.8281,3268.9,3268.7,3.05924]
[1736529659072,0.8281,3268.9,3268.5,3.05946]
[1736529659278,0.8281,3268.9,3268.2,3.05971]
[1736529659478,0.8281,3268.9,3268.6,3.05938]
[1736529660107,0.8281,3268.9,3268.7,3.05927]
[1736529660322,0.7626,3269.3,3268.4,3.0596]
[1736529660630,3.05772,3270.5,3268.4,3.0596]
[1736529660631,0.7626,3269.7,3269.2,3.0588]
[1736529660993,0.7626,3269.7,3269.0,3.05902]
[1736529661206,4.24253114,3269.7,3268.6,3.05933]
[1736529661401,4.24253114,3269.7,3268.7,3.05923]
[1736529661605,1.18409114,3269.7,3268.8,3.05918]
[1736529661802,1.18409114,3269.7,3268.9,0.62413633]
[1736529662028,0.7626,3269.7,3269.0,0.03058998]
[1736529662244,0.7694,3270.1,3269.2,0.0075]
[1736529662453,0.7694,3270.5,3270.2,3.05787]
[1736529662598,0.7694,3270.5,3269.9,3.0581]
[1736529662799,0.7694,3270.5,3269.3,0.0075]
[1736529663124,0.7694,3270.5,3269.1,0.26]
[1736529663125,0.7694,3270.5,3270.0,3.05803]
[1736529663438,0.813,3271.4,3270.1,0.2905792]
[1736529663640,0.813,3272.2,3271.3,3.05679]
[1736529663964,0.42653114,3272.1,3271.4,3.05676]
[1736529664114,0.42653114,3272.1,3271.1,0.0075]
[1736529664446,0.813,3272.2,3271.1,3.31707]
[1736529664649,0.813,3272.2,3271.2,0.03056468]
[1736529664945,0.813,3272.2,3271.4,3.05673]
[1736529665596,3.86908,3272.2,3271.3,0.62059099]
[1736529665798,0.386908,3272.1,3271.3,0.62059099]
[1736529666247,3.05634,3271.9,3271.1,0.26]
[1736529666433,3.443048,3272.1,3271.1,0.26]
[1736529666741,3.443048,3272.1,3271.1,3.94180686]
[1736529667447,0.813,3272.2,3271.1,0.88475686]
[1736529667589,0.813,3272.2,3271.4,3.05679]
[1736529667794,0.813,3272.2,3271.3,3.05688]
[1736529667994,0.813,3272.2,3271.4,3.05675]
[1736529668196,0.813,3272.2,3271.5,3.05668]
[1736529670652,0.813,3272.2,3271.3,0.03056475]
[1736529671213,0.813,3272.2,3271.5,3.05663]
[1736529671708,0.813,3272.2,3271.8,0.60863523]
[1736529672424,0.813,3272.2,3271.3,3.05683]
[1736529672837,3.86905,3272.2,3271.1,3.31704]
[1736529673012,0.55,3272.0,3271.1,3.05704]